bitfinex-derivatives/quotes_SOLF0:USTF0_20260107
["timestamp","ask_amount","ask_price","bid_price","bid_amount"]
[1767815559536,1.43431807,136.02,135.97,8.24457891]
[1767815560130,8.05831807,136.02,135.97,8.24457891]
[1767815563634,8.05831807,136.02,135.97,6.83971387]
[1767815563832,1.43431807,136.01,135.97,6.83971387]
[1767815564036,8.05861807,136.01,135.96,6.83971387]
[1767815564537,1.43431807,136.0,135.96,6.83971387]
[1767815564725,1.43431807,136.0,135.95,8.24457891]
[1767815564726,8.05911807,136.0,135.95,8.24457891]
[1767815565129,1.43431807,136.0,135.95,14.87177891]
[1767815566239,1.43431807,136.0,135.95,8.24457891]
[1767815567140,8.05911807,136.0,135.95,8.24457891]
[1767815567341,8.05911807,136.0,135.92,91.97844296]
[1767815567342,104.48961807,136.0,135.94,3.242e-05]
[1767815567537,1.43431807,135.98,135.9,9.13706001]
[1767815567932,1.43431807,135.98,135.89,10.54192505]
[1767815568137,106.43519079,135.99,135.89,17.17182505]
[1767815568138,6.6272,135.96,135.89,17.17182505]
[1767815568444,1.43431807,135.99,135.9,1.40486504]
[1767815568645,1.43431807,135.99,135.91,1.40486504]
[1767815568831,6.6262,135.97,135.91,1.40486504]
[1767815569037,8.06051807,135.97,135.91,1.40486504]
[1767815570134,1.43431807,135.97,135.91,1.40486504]
[1767815572946,1.43431807,135.97,135.91,8.03396504]
[1767815577444,1.43431807,135.96,135.89,97.48192505]
[1767815577638,1.43431807,135.96,135.9,1.40486504]
[1767815577840,8.06101807,135.96,135.9,1.40486504]
[1767815578348,8.06101807,135.96,135.9,8.03426504]
[1767815579143,6.6262,135.97,135.91,1.40486504]
[1767815579343,1.43431807,135.98,135.92,1.40486504]
[1767815580760,8.06021807,135.98,135.92,1.40486504]
[1767815581048,3.59486356,135.98,135.9,86.96]
[1767815581232,1.43431807,135.96,135.9,88.36486504]
[1767815582643,1.43431807,135.96,135.9,94.99436504]
[1767815583044,1.44271441,135.95,135.88,1.40618026]
[1767815583946,6.6277,135.94,135.88,8.03638026]
[1767815584247,8.07041441,135.94,135.88,1.40618026]
[1767815585746,1.44271441,135.93,135.87,93.5909]
[1767815586246,1.44271441,135.93,135.87,94.99708026]
[1767815586848,8.07101441,135.93,135.87,94.99708026]
[1767815587050,1.44271441,135.95,135.89,1.40618026]
[1767815587250,1.44271441,135.95,135.87,88.36618026]
[1767815587746,6.6279,135.94,135.88,1.40618026]
[1767815588050,8.07061441,135.94,135.88,1.40618026]
[1767815589049,8.07061441,135.94,135.88,8.03668026]
[1767815589350,8.06981441,135.96,135.88,1.40618026]
[1767815589550,8.06981441,135.96,135.89,1.40618026]
[1767815589941,2.16054549,135.97,135.89,1.40618026]
[1767815589942,8.07001441,135.95,135.89,8.03628026]
[1767815594651,1.44271441,135.94,135.89,8.03628026]
[1767815594954,1.44271441,135.94,135.89,1.40618026]
[1767815596050,1.44271441,135.93,135.87,88.36618026]
[1767815596960,8.07091441,135.93,135.87,94.99728026]
[1767815597158,1.44271441,135.93,135.85,1.40618026]
[1767815597356,1.44271441,135.97,135.89,1.40618026]
[1767815598554,8.06991441,135.95,135.89,8.03628026]
[1767815600858,8.07041441,135.94,135.88,6.6306]
[1767815601154,1.44271441,135.93,135.87,1.40618026]
[1767815602555,1.44271441,135.93,135.88,6.6306]
[1767815605460,1.44271441,135.93,135.87,8.03728026]
[1767815605765,1.44271441,135.93,135.86,86.98]
[1767815605966,1.44271441,135.93,135.85,3.56672575]
[1767815606266,1.44271441,135.92,135.85,10.19832575]
[1767815606968,1.44271441,135.92,135.86,1.40618026]
[1767815607266,8.07141441,135.92,135.86,1.40618026]
[1767815608558,1.44271441,135.92,135.86,8.03758026]
[1767815609763,8.07141441,135.92,135.86,8.03758026]
[1767815615371,8.04714279,135.91,135.84,19.27659787]
[1767815615675,1.41784279,135.9,135.84,7.97899237]
[1767815616862,8.04764279,135.9,135.84,1.34679237]
[1767815617073,1.41784279,135.9,135.82,1.34679237]
[1767815617963,6.63,135.9,135.82,1.34679237]
[1767815618162,1.41784279,135.89,135.82,1.34679237]
[1767815618580,1.41784279,135.88,135.82,1.34679237]
[1767815619577,8.04854279,135.88,135.82,1.34679237]
[1767815621476,1.41784279,135.84,135.78,1.34679237]
[1767815622584,1.41784279,135.84,135.78,10.14273786]
[1767815623278,1.41784279,135.84,135.79,1.34679237]
[1767815623494,6.6321,135.85,135.79,1.34679237]
[1767815623986,8.04994279,135.85,135.79,1.34679237]
[1767815626385,6.6327,135.84,135.79,1.34679237]
[1767815629187,8.05054279,135.84,135.79,1.34679237]
[1767815633186,8.05054279,135.84,135.77,10.14323786]
[1767815635393,1.41784279,135.84,135.78,7.98219237]
[1767815635692,1.41784279,135.86,135.79,3.50733786]
[1767815635883,6.6321,135.85,135.79,3.50733786]
[1767815636195,8.04994279,135.85,135.79,3.50733786]
[1767815636577,8.04994279,135.85,135.79,1.34679237]
[1767815639393,1.41784279,135.84,135.79,1.34679237]
[1767815641302,1.41784279,135.84,135.77,7.99416917]
[1767815642595,1.31640723,135.82,135.74,229.11290718]
[1767815642791,1.31640723,135.82,135.74,230.50016957]
[1767815643594,7.95050723,135.81,135.74,143.48016957]
[1767815644300,1.31640723,135.8,135.74,1.38726239]
[1767815644705,6.6341,135.81,135.75,1.38726239]
[1767815644999,7.95050723,135.81,135.75,1.38726239]
[1767815647103,1.31640723,135.8,135.75,1.38726239]
[1767815647605,7.95110723,135.8,135.75,1.38726239]
[1767815647799,7.95110723,135.8,135.73,1.38726239]
[1767815648003,1.31640723,135.8,135.73,1.38726239]
[1767815648205,1.31640723,135.79,135.73,1.38726239]
[1767815648707,6.6355,135.78,135.73,1.38726239]
[1767815649004,7.95190723,135.78,135.72,87.04]
[1767815649407,7.95190723,135.78,135.72,88.42726239]
[1767815649698,6.6362,135.77,135.72,1.38726239]
[1767815649907,7.95260723,135.77,135.7,1.38726239]
[1767815651305,7.95180723,135.79,135.71,1.38726239]
[1767815651606,1.31640723,135.78,135.71,1.38726239]
[1767815652107,1.31640723,135.77,135.71,1.38726239]
[1767815660907,1.31640723,135.77,135.72,1.38726239]
[1767815665603,1.31640723,135.77,135.72,8.02566239]
[1767815666108,1.31640723,135.79,135.73,1.38726239]
[1767815666606,7.95070723,135.81,135.74,1.38726239]
[1767815667814,7.95070723,135.81,135.75,6.6369]
[1767815668518,1.31640723,135.81,135.75,8.02416239]
[1767815669626,7.95040723,135.81,135.75,8.02416239]
[1767815674619,1.34042885,135.8,135.75,8.02416239]
[1767815675322,1.34042885,135.8,135.75,1.38726239]
[1767815678823,7.97492885,135.8,135.75,1.38726239]
[1767815679124,1.34042885,135.8,135.73,8.25189288]
[1767815679329,103.192,135.82,135.7,6.80462188]
[1767815679330,1.34042885,135.76,135.7,6.80462188]
[1767815679520,1.34042885,135.76,135.7,1.447271]
[1767815680224,1.34042885,135.76,135.7,8.25189288]
[1767815680633,1.34042885,135.76,135.7,1.447271]
[1767815681428,1.34042885,135.76,135.68,8.087171]
[1767815681628,7.97732885,135.76,135.69,1.447271]
[1767815683032,7.97732885,135.76,135.69,8.087171]
[1767815683224,7.97732885,135.76,135.7,1.447271]
[1767815684918,6.6369,135.76,135.71,1.447271]
[1767815686832,7.97642885,135.77,135.71,1.447271]
[1767815688334,1.34042885,135.79,135.72,1.447271]
[1767815689627,6.6355,135.78,135.72,1.447271]
[1767815689932,7.97592885,135.78,135.72,1.447271]
[1767815692436,7.97592885,135.78,135.72,8.085671]
[1767815694335,1.34042885,135.75,135.7,6.80462188]
[1767815694638,1.34042885,135.75,135.69,6.80462188]
[1767815694943,1.34042885,135.75,135.68,8.25189288]
[1767815695438,1.34042885,135.75,135.69,1.447271]
[1767815696638,7.97742885,135.75,135.69,1.447271]
[1767815696941,7.97742885,135.75,135.69,8.25189288]
[1767815697140,7.97742885,135.75,135.69,1.447271]
[1767815699042,6.6375,135.74,135.69,1.447271]
[1767815700342,1.34042885,135.72,135.68,6.80462188]
[1767815700536,1.34042885,135.72,135.67,6.6408]
[1767815700537,1.34042885,135.72,135.67,13.44542188]
[1767815700844,1.34042885,135.72,135.67,13.45822308]
[1767815701146,1.34042885,135.72,135.67,14.90549408]
[1767815702443,1.34042885,135.72,135.67,8.088071]
[1767815702646,1.37508814,135.71,135.66,6.81742308]
[1767815702843,1.37508814,135.71,135.66,8.12668709]
[1767815703152,1.37508814,135.73,135.67,1.30926401]
[1767815703341,1.37508814,135.75,135.68,1.30926401]
[1767815703646,1.37508814,135.77,135.7,1.30926401]
[1767815704648,8.01188814,135.76,135.7,1.30926401]
[1767815708246,1.37508814,135.73,135.67,100.55792308]
[1767815708750,1.37508814,135.73,135.67,101.86718709]
[1767815710644,2.16793642,135.76,135.69,1.30926401]
[1767815710645,8.01198814,135.76,135.69,1.30926401]
[1767815711049,8.01208814,135.75,135.69,1.30926401]
[1767815711247,1.37508814,135.75,135.69,1.30926401]
[1767815712540,1.37508814,135.75,135.69,7.94906401]
[1767815715770,8.01158814,135.76,135.7,7.94866401]
[1767815716165,1.37508814,135.76,135.7,7.94866401]
[1767815717471,1.37508814,135.78,135.72,1.30926401]
[1767815717766,1.37508814,135.8,135.74,1.30926401]
[1767815720069,6.6344,135.81,135.74,1.30926401]
[1767815720465,8.00948814,135.81,135.74,1.30926401]
[1767815720773,8.00948814,135.81,135.74,14.76388709]
[1767815726971,8.00948814,135.81,135.74,7.94646401]
[1767815727167,1.37508814,135.8,135.74,14.76388709]
[1767815727369,1.37508814,135.8,135.74,7.94646401]
[1767815728265,1.37508814,135.8,135.75,1.30926401]
[1767815730871,1.37508814,135.8,135.75,7.94596401]
[1767815732971,6.6335,135.83,135.77,1.32627505]
[1767815733175,7.95210552,135.83,135.77,1.32627505]
[1767815734070,7.95210552,135.83,135.78,1.32627505]
[1767815734670,1.31860552,135.86,135.79,1.32627505]
[1767815735770,7.95080552,135.85,135.79,7.96127505]
[1767815738673,7.95080552,135.85,135.79,1.32627505]
[1767815739476,7.95080552,135.85,135.8,1.32627505]
[1767815739679,1.31860552,135.85,135.8,1.32627505]
[1767815741985,1.31860552,135.87,135.81,1.32627505]
[1767815743488,3.48654194,135.91,135.83,1.32627505]
[1767815743781,1.31860552,135.9,135.83,1.32627505]
[1767815744587,6.6302,135.89,135.83,1.32627505]
[1767815748181,7.94880552,135.89,135.83,1.32627505]
[1767815753088,1.31860552,135.87,135.81,1.32627505]
[1767815753394,1.31860552,135.87,135.79,1.32627505]
[1767815754694,7.95020552,135.86,135.79,7.96127505]
[1767815757594,1.31860552,135.86,135.8,6.6344]
[1767815757799,1.31860552,135.86,135.8,7.96067505]
[1767815759999,1.31860552,135.84,135.77,1.32627505]
[1767815760989,7.95120552,135.84,135.78,6.6355]
[1767815762497,7.95120552,135.84,135.78,7.9885277]
[1767815762808,1.31860552,135.84,135.78,7.9885277]
[1767815764906,1.31860552,135.84,135.78,1.3530277]
[1767815766607,7.95130552,135.84,135.78,1.3530277]
[1767815766905,1.31860552,135.84,135.78,1.3530277]
[1767815767403,1.31860552,135.84,135.79,6.635]
[1767815767600,1.31860552,135.84,135.79,7.9880277]
[1767815768613,7.95120552,135.84,135.78,7.9884277]
[1767815768794,1.32675406,135.83,135.77,1.3530277]
[1767815769194,1.32675406,135.83,135.78,1.3530277]
[1767815769908,1.32675406,135.83,135.78,7.9885277]
[1767815771206,3.38292333,135.83,135.75,6.80020703]
[1767815771415,1.32675406,135.82,135.73,8.15323473]
[1767815771704,1.32675406,135.82,135.73,1.3530277]
[1767815772107,1.32675406,135.8,135.74,1.3530277]
[1767815772305,1.32675406,135.82,135.74,1.3530277]
[1767815772608,1.32675406,135.82,135.74,8.15323473]
[1767815773715,1.32675406,135.81,135.75,7.9899277]
[1767815776010,1.32675406,135.8,135.73,8.15323473]
[1767815776311,1.32675406,135.84,135.76,1.3530277]
[1767815776514,1.32675406,135.84,135.77,6.6359]
[1767815776705,1.32675406,135.84,135.77,7.9889277]
[1767815776903,1.32675406,135.84,135.78,1.3530277]
[1767815778007,1.32675406,135.83,135.78,1.3530277]
[1767815778205,1.32675406,135.83,135.76,1.3530277]
[1767815778615,1.32675406,135.81,135.75,6.80020703]
[1767815778816,1.32675406,135.81,135.74,88.4130277]
[1767815779208,1.32675406,135.81,135.75,1.3530277]
[1767815779705,6.6343,135.81,135.74,87.06]
[1767815779910,1.32675406,135.8,135.74,88.4130277]
[1767815782612,1.32675406,135.8,135.74,1.3530277]
[1767815783312,7.96175406,135.79,135.72,14.79133473]
[1767815783520,7.96175406,135.79,135.73,1.3530277]
[1767815784111,1.32675406,135.79,135.73,1.3530277]
[1767815784916,1.32675406,135.79,135.73,7.9909277]
[1767815788219,7.96175406,135.79,135.73,7.9909277]
[1767815790625,6.635,135.79,135.74,1.3530277]
[1767815791830,7.96105406,135.81,135.75,1.36245592]
[1767815794227,8.0771394,135.83,135.76,1.36245592]
[1767815795528,8.0771394,135.83,135.77,6.6359]
[1767815795727,8.0771394,135.83,135.77,7.99835592]
[1767815797431,8.0771394,135.83,135.78,1.36245592]
[1767815802033,8.0773394,135.82,135.76,1.36245592]
[1767815802236,1.4437394,135.81,135.75,6.78257843]
[1767815802539,1.4437394,135.81,135.73,9.04759249]
[1767815802540,1.4437394,135.81,135.73,8.14503435]
[1767815803638,8.0783394,135.8,135.73,14.78293435]
[1767815803932,8.0783394,135.8,135.73,8.14503435]
[1767815804538,8.0783394,135.8,135.74,6.6374]
[1767815805038,8.0783394,135.8,135.73,8.14503435]
[1767815805339,1.4437394,135.79,135.73,8.14503435]
[1767815805840,8.0788394,135.79,135.73,8.14503435]
[1767815806641,8.0788394,135.79,135.73,1.36245592]
[1767815807230,8.0788394,135.79,135.73,8.14503435]
[1767815807431,8.0788394,135.79,135.73,1.36245592]
[1767815807632,8.0788394,135.79,135.73,8.14503435]
[1767815809728,6.6357,135.78,135.73,8.14503435]
[1767815810142,6.6357,135.78,135.73,1.36245592]
[1767815810344,8.0794394,135.78,135.73,1.36245592]
[1767815815445,8.0794394,135.78,135.73,8.14503435]
[1767815818748,8.0794394,135.78,135.73,1.36245592]
[1767815820253,1.4437394,135.78,135.73,1.36245592]
[1767815821851,8.0792394,135.78,135.73,1.36245592]
[1767815823347,1.4437394,135.78,135.73,1.36245592]
[1767815825351,6.635,135.79,135.73,6.6379]
[1767815825543,7.94069008,135.81,135.74,1.40735324]
[1767815825854,7.94069008,135.81,135.75,3.57396352]
[1767815826253,7.94069008,135.81,135.75,10.21076352]
[1767815827356,7.94069008,135.81,135.75,16.99334195]
[1767815832658,1.30619008,135.83,135.76,1.40735324]
[1767815832859,1.30619008,135.83,135.77,1.40735324]
[1767815833254,1.30619008,135.83,135.77,10.35654195]
[1767815833559,1.30619008,135.83,135.77,16.99224195]
[1767815833952,1.30619008,135.83,135.78,1.40735324]
[1767815834151,1.30619008,135.85,135.78,1.40735324]
[1767815834558,1.30619008,135.85,135.79,1.40735324]
[1767815834958,1.30619008,135.85,135.79,8.18993167]
[1767815835359,1.30619008,135.85,135.79,1.40735324]
[1767815835658,7.93829008,135.85,135.79,1.40735324]
[1767815835858,1.30619008,135.85,135.79,1.40735324]
[1767815837557,7.93879008,135.84,135.79,1.40735324]
[1767815841262,7.93879008,135.84,135.77,10.20946352]
[1767815842363,1.30619008,135.83,135.77,10.20946352]
[1767815842757,1.30619008,135.82,135.77,1.40735324]
[1767815845263,1.30619008,135.82,135.75,16.99304195]
[1767815846654,1.30619008,135.81,135.75,10.35654195]
[1767815847462,6.6347,135.8,135.75,10.35654195]
[1767815849265,6.6347,135.8,135.75,8.18993167]
[1767815849967,1.30619008,135.78,135.73,1.40735324]
[1767815850461,7.94169008,135.78,135.72,6.78257843]
[1767815850655,7.94169008,135.78,135.71,16.99524195]
[1767815851161,7.94169008,135.78,135.72,1.40735324]
[1767815852876,6.636,135.77,135.72,1.40735324]
[1767815853170,7.93404443,135.77,135.72,1.40735324]
[1767815857873,1.29804443,135.77,135.72,1.40735324]
[1767815869586,7.93404443,135.77,135.72,1.40735324]
[1767815880878,7.93404443,135.77,135.72,8.04575324]
[1767815881072,1.29804443,135.77,135.72,8.04575324]
[1767815882882,7.99660263,135.79,135.73,7.90375989]
[1767815883284,1.36160263,135.78,135.73,7.90375989]
[1767815886185,1.36160263,135.78,135.73,1.26585989]
[1767815886186,7.99720263,135.78,135.73,1.26585989]
[1767815891394,7.99720263,135.78,135.73,8.04843832]
[1767815893497,1.36160263,135.78,135.73,14.68633832]
[1767815893896,7.99650263,135.8,135.74,1.26585989]
[1767815894286,7.99650263,135.8,135.74,8.04843832]
[1767815896296,7.99650263,135.8,135.75,8.04843832]
[1767815896494,1.36160263,135.8,135.75,8.04843832]
[1767815896698,1.36160263,135.8,135.76,6.78257843]
[1767815899405,1.36160263,135.8,135.75,14.68533832]
[1767815899706,1.36160263,135.8,135.75,8.04843832]
[1767815902906,1.36160263,135.79,135.75,6.78257843]
[1767815903912,7.99660263,135.79,135.75,6.78257843]
[1767815904209,6.635,135.79,135.75,8.04843832]
[1767815905011,6.635,135.79,135.75,1.26585989]
[1767815905811,6.635,135.79,135.75,8.04843832]
[1767815906009,6.6345,135.8,135.75,8.04843832]
[1767815906208,1.36160263,135.81,135.76,1.26585989]
[1767815908712,1.36160263,135.81,135.76,8.04843832]
[1767815910715,6.6336,135.82,135.77,1.26585989]
[1767815911902,1.36160263,135.83,135.77,1.26585989]
[1767815912108,65.42918155,135.84,135.79,1.28955492]
[1767815912312,65.42918155,135.84,135.79,8.07213335]
[1767815912515,65.42918155,135.84,135.79,1.28955492]
[1767815914308,65.42918155,135.84,135.79,7.92455492]
[1767815914704,7.96351363,135.87,135.8,1.28955492]
[1767815915109,7.96351363,135.87,135.81,7.92335492]
[1767815916717,7.96351363,135.87,135.8,93.84257843]
[1767815916718,1.33201363,135.87,135.82,7.92285492]
[1767815920023,7.96251363,135.89,135.83,1.28955492]
[1767815920517,1.33201363,135.88,135.83,1.28955492]
[1767815922016,7.96251363,135.89,135.83,1.28955492]
[1767815924922,6.6307,135.88,135.83,1.28955492]
[1767815927830,7.96311363,135.87,135.81,1.28955492]
[1767815928021,7.96311363,135.87,135.81,88.32955492]
[1767815928326,7.96311363,135.87,135.82,1.28955492]
[1767815934339,7.96311363,135.87,135.8,3.38556326]
[1767815934340,1.33201363,135.85,135.8,88.30955492]
[1767815935633,1.33201363,135.85,135.8,94.94405492]
[1767815940539,6.6321,135.85,135.8,87.02]
[1767815940843,1.33201363,135.84,135.8,87.02]
[1767815942647,1.35077763,135.83,135.8,87.02]
[1767815942842,1.35077763,135.83,135.78,6.635]
[1767815943542,1.35077763,135.82,135.77,93.6559]
[1767815943743,1.35077763,135.82,135.77,87.02]
[1767815945245,1.35077763,135.82,135.77,93.656]
[1767815946650,1.35077763,135.82,135.77,6.636]
[1767815946850,1.35077763,135.82,135.76,7.96706444]
[1767815947539,7.98427763,135.82,135.76,7.96706444]
[1767815948835,7.98497763,135.81,135.75,6.78257843]
[1767815949045,7.98497763,135.81,135.74,101.79024287]
[1767815950646,6.6345,135.8,135.74,101.79024287]
[1767815950853,1.35077763,135.79,135.73,1.33066444]
[1767815951046,1.35077763,135.79,135.73,88.37066444]
[1767815951352,1.35077763,135.79,135.73,1.33066444]
[1767815951549,1.35077763,135.78,135.73,1.33066444]
[1767815954450,1.35077763,135.78,135.72,87.04]
[1767815954851,1.35077763,135.78,135.72,88.37066444]
[1767815955552,1.35077763,135.78,135.73,1.33066444]
[1767815957948,7.98567763,135.8,135.73,1.33066444]
[1767815958149,1.35077763,135.79,135.74,1.33066444]
[1767815966267,1.35077763,135.79,135.74,7.96806444]
[1767815967069,1.35077763,135.81,135.75,7.96756444]
[1767815967370,1.35077763,135.81,135.76,1.33066444]
[1767815968270,6.6329,135.84,135.78,1.33066444]
[1767815968477,1.35077763,135.83,135.78,1.33066444]
[1767815968978,7.98387763,135.83,135.77,93.7159]
[1767815970177,1.35077763,135.81,135.74,88.41066444]
[1767815970377,1.35077763,135.81,135.75,1.33066444]
[1767815971573,1.35077763,135.81,135.75,7.96746444]
[1767815974973,7.98477763,135.81,135.75,7.96746444]
[1767815977878,6.6346,135.8,135.75,1.33066444]
[1767815978085,7.90734638,135.8,135.75,1.33066444]
[1767815980376,1.27274638,135.8,135.75,1.33066444]
[1767815982277,7.90674638,135.82,135.75,8.10224597]
[1767815982874,1.27274638,135.81,135.75,8.10224597]
[1767815983886,1.27274638,135.8,135.75,8.10224597]
[1767815984086,1.27274638,135.8,135.75,1.33066444]
[1767815984289,1.27274638,135.8,135.75,8.10224597]
[1767815986189,1.27274638,135.8,135.75,8.12866919]
[1767815992984,1.27274638,135.79,135.74,6.79800475]
[1767815996593,1.27274638,135.79,135.74,8.09723076]
[1767816000601,1.27274638,135.79,135.74,14.73463076]
[1767816000900,6.6345,135.8,135.75,1.29922601]
[1767816001302,7.90724638,135.8,135.75,1.29922601]
[1767816002001,1.27357737,135.82,135.77,1.31855599]
[1767816002306,1.27357737,135.84,135.78,1.31855599]
[1767816002492,1.27357737,135.84,135.79,1.31855599]
[1767816002688,6.6325,135.85,135.79,8.12377395]
[1767816002894,7.90607737,135.85,135.79,8.12377395]
[1767816003093,7.90607737,135.85,135.79,1.31855599]
[1767816003690,1.27357737,135.85,135.79,7.95345599]
[1767816003996,1.27357737,135.85,135.79,14.75867395]
[1767816005104,6.6317,135.86,135.8,1.31855599]
[1767816005405,1.27357737,135.87,135.81,1.31855599]
[1767816005999,88.35357737,135.89,135.82,1.31855599]
[1767816006204,1.27357737,135.89,135.83,1.31855599]
[1767816007594,7.90377737,135.89,135.83,1.31855599]
[1767816007901,1.27357737,135.88,135.82,1.31855599]
[1767816008410,7.90427737,135.88,135.82,1.31855599]
[1767816008805,1.27357737,135.9,135.82,1.31855599]
[1767816008998,1.27357737,135.9,135.83,1.31855599]
[1767816009500,1.27357737,135.89,135.82,95.18377395]
[1767816009800,1.27357737,135.89,135.82,87.06]
[1767816009998,7.90427737,135.88,135.81,1.31855599]
[1767816010508,7.90427737,135.88,135.81,8.12377395]
[1767816011800,7.90427737,135.88,135.81,1.31855599]
[1767816013705,6.6312,135.87,135.81,1.31855599]
[1767816013904,7.90477737,135.87,135.81,1.31855599]
[1767816020017,6.6316,135.86,135.81,1.31855599]
[1767816021713,1.27357737,135.86,135.79,1.31855599]
[1767816022517,7.90567737,135.86,135.79,1.31855599]
[1767816022912,1.27357737,135.86,135.79,1.31855599]
[1767816024110,6.6321,135.85,135.79,1.31855599]
[1767816025218,6.6321,135.85,135.79,7.95345599]
[1767816025719,7.90517737,135.86,135.79,7.95345599]
[1767816025921,1.27357737,135.89,135.81,1.31855599]
[1767816027010,1.27357737,135.88,135.81,7.95215599]
[1767816028710,1.27357737,135.88,135.82,7.95205599]
[1767816029212,7.90417737,135.88,135.82,7.95205599]
[1767816030524,7.90467737,135.87,135.82,1.31855599]
[1767816031715,1.27357737,135.85,135.79,8.12377395]
[1767816031918,1.27357737,135.85,135.77,95.14831159]
[1767816032222,1.27357737,135.85,135.77,87.04]
[1767816032519,190.1876,135.88,135.75,98.0695652]
[1767816032520,1.23713339,135.81,135.75,98.0695652]
[1767816033422,1.23713339,135.81,135.75,91.4329652]
[1767816034228,1.23713339,135.81,135.76,1.30309363]
[1767816034627,6.6335,135.82,135.76,1.30309363]
[1767816036029,1.23713339,135.85,135.77,1.30309363]
[1767816036224,1.23713339,135.85,135.78,1.30309363]
[1767816037626,7.86933339,135.85,135.78,1.30309363]
[1767816038125,1.23713339,135.85,135.79,1.30309363]
[1767816041734,1.23713339,135.84,135.77,8.10831159]
[1767816041936,1.23713339,135.84,135.77,1.30309363]
[1767816042540,7.86973339,135.84,135.77,1.30309363]
[1767816043140,1.23713339,135.83,135.77,1.30309363]
[1767816043343,1.23713339,135.83,135.77,8.10831159]
[1767816043537,1.23713339,135.82,135.77,6.80521796]
[1767816043945,1.23713339,135.82,135.76,6.80521796]
[1767816044139,1.23713339,135.82,135.76,8.10831159]
[1767816044646,7.87073339,135.82,135.76,8.10831159]
[1767816046345,7.87073339,135.82,135.77,6.80521796]
[1767816046746,7.87073339,135.82,135.76,8.10831159]
[1767816047347,7.87073339,135.82,135.77,6.80521796]
[1767816050553,1.23713339,135.81,135.77,6.80521796]
[1767816050742,7.87143339,135.81,135.75,96.93508953]
[1767816051953,7.87143339,135.81,135.75,98.23818316]
[1767816052753,1.23713339,135.81,135.75,98.23818316]
[1767816053052,7.87063339,135.83,135.76,1.30309363]
[1767816053250,7.87063339,135.83,135.76,8.10831159]
[1767816054553,7.87063339,135.83,135.76,14.74471159]
[1767816054852,7.87073339,135.82,135.76,1.30309363]
[1767816058455,7.87073339,135.82,135.76,8.10831159]
[1767816059344,103.1148,135.92,135.8,1.30309363]
[1767816059545,1.23713339,135.92,135.82,8.10831159]
[1767816059753,1.23713339,135.92,135.83,1.30309363]
[1767816060056,1.23713339,135.92,135.83,8.10831159]
[1767816060649,1.23713339,135.9,135.83,14.74121159]
[1767816062363,1.23713339,135.9,135.84,6.6323]
[1767816062653,65.37780526,135.93,135.85,1.32062682]
[1767816062859,1.30846146,135.94,135.87,7.95152682]
[1767816064053,1.30846146,135.94,135.87,1.32062682]
[1767816064655,1.30846146,135.94,135.87,3.48216984]
[1767816068061,1.30846146,135.94,135.88,1.32062682]
[1767816069362,1.30846146,135.96,135.88,1.32062682]
[1767816069861,1.26742206,135.95,135.88,1.32062682]
[1767816070062,1.26742206,135.95,135.86,88.33521401]
[1767816070362,1.26742206,135.95,135.88,1.27521401]
[1767816070363,7.89472206,135.95,135.88,1.27521401]
[1767816070659,1.26742206,135.95,135.88,1.27521401]
[1767816072362,1.26742206,135.95,135.89,1.27521401]
[1767816075159,7.89462206,135.95,135.89,1.27521401]
[1767816076067,6.6277,135.94,135.89,1.27521401]
[1767816077262,7.89512206,135.94,135.89,1.27521401]
[1767816079267,1.26742206,135.94,135.89,1.27521401]
[1767816079466,1.26742206,135.97,135.9,1.27521401]
[1767816079864,6.6272,135.95,135.9,1.27521401]
[1767816080166,1.26742206,135.96,135.88,1.27521401]
[1767816081566,1.26742206,135.93,135.88,1.27521401]
[1767816083972,7.89512206,135.95,135.89,7.90531401]
[1767816084270,1.26742206,135.95,135.9,1.27521401]
[1767816085365,7.89462206,135.95,135.9,1.27521401]
[1767816085972,7.89522206,135.94,135.88,1.27521401]
[1767816087468,6.6272,135.95,135.89,1.27521401]
[1767816087668,1.26742206,135.96,135.89,1.27521401]
[1767816088666,7.89412206,135.96,135.89,7.90521401]
[1767816089372,6.6272,135.95,135.89,1.27521401]
[1767816089567,1.26742206,135.95,135.89,1.27521401]
[1767816089873,1.26742206,135.95,135.87,94.90581401]
[1767816090068,7.89562206,135.93,135.87,88.27521401]
[1767816091774,6.6276,135.95,135.88,1.27521401]
[1767816092079,1.28968836,135.97,135.9,1.21220197]
[1767816092478,1.28968836,136.0,135.91,1.21220197]
[1767816092873,1.28968836,136.0,135.92,7.84070197]
[1767816093277,6.6257,135.98,135.92,7.84070197]
[1767816093473,6.6257,135.98,135.93,1.21220197]
[1767816094180,6.6263,135.97,135.91,1.21220197]
[1767816094873,6.6254,135.99,135.93,1.21220197]
[1767816095186,6.6254,135.99,135.94,1.21220197]
[1767816096784,7.91418836,136.01,135.94,1.21220197]
[1767816097285,6.6248,136.0,135.94,1.21220197]
[1767816100676,7.91448836,136.0,135.94,1.21220197]
[1767816101589,3.45123138,135.99,135.91,6.6287]
[1767816101781,1.28968836,135.98,135.91,6.6287]
[1767816102382,6.6262,135.97,135.91,6.6287]
[1767816103290,7.91538836,135.98,135.91,7.84090197]